[Event "Early-Titled-Tuesday-Blitz-October-24-2023"]
[Site "Chess.com"]
[Date "2023.10.24"]
[Round "9"]
[White "Bilan_Danila"]
[Black "Giorno"]
[Result "1-0"]
[WhiteElo "2431"]
[BlackElo "2533"]
[TimeControl "180+1"]
[EndTime "9:41:19 PDT"]
[Termination "Bilan_Danila won by checkmate"]

1. d4 {[%clk 0:03:00.9]} 1... d5 {[%clk 0:02:54.2]} 2. Nf3 {[%clk 0:03:01.1]}
2... Nf6 {[%clk 0:02:52.5]} 3. c4 {[%clk 0:03:01.3]} 3... e6 {[%clk 0:02:50.1]}
4. Nc3 {[%clk 0:03:01.7]} 4... Be7 {[%clk 0:02:49.3]} 5. Bg5 {[%clk 0:03:01.7]}
5... O-O {[%clk 0:02:46.8]} 6. e3 {[%clk 0:03:01.9]} 6... Nbd7 {[%clk
0:02:35.1]} 7. Bd3 {[%clk 0:03:01]} 7... Re8 {[%clk 0:02:33]} 8. Qc2 {[%clk
0:02:58]} 8... Nf8 {[%clk 0:02:32.5]} 9. Ne5 {[%clk 0:02:55.5]} 9... Ng6 {[%clk
0:02:26.8]} 10. f4 {[%clk 0:02:52.7]} 10... dxc4 {[%clk 0:02:22.5]} 11. Bxc4
{[%clk 0:02:50.6]} 11... Nd5 {[%clk 0:02:17]} 12. Bxe7 {[%clk 0:02:42.6]} 12...
Rxe7 {[%clk 0:02:13]} 13. Nxd5 {[%clk 0:02:11.2]} 13... exd5 {[%clk 0:02:01]}
14. Bd3 {[%clk 0:02:10.2]} 14... f6 {[%clk 0:01:59.9]} 15. Nxg6 {[%clk
0:02:06.7]} 15... hxg6 {[%clk 0:01:57.7]} 16. Bxg6 {[%clk 0:01:50]} 16... Rxe3+
{[%clk 0:01:55.3]} 17. Kf2 {[%clk 0:01:50]} 17... Re7 {[%clk 0:01:49.1]} 18.
Rae1 {[%clk 0:01:33.4]} 18... Be6 {[%clk 0:01:44.5]} 19. h4 {[%clk 0:01:16.7]}
19... Qd6 {[%clk 0:01:38.2]} 20. g3 {[%clk 0:01:09.6]} 20... Bf7 {[%clk
0:01:32.5]} 21. h5 {[%clk 0:00:51.1]} 21... Rae8 {[%clk 0:01:26]} 22. Bxf7+
{[%clk 0:00:44.8]} 22... Kxf7 {[%clk 0:01:24.6]} 23. Qg6+ {[%clk 0:00:43.6]}
23... Kf8 {[%clk 0:01:22.6]} 24. h6 {[%clk 0:00:42.4]} 24... Kg8 {[%clk
0:00:36.1]} 25. h7+ {[%clk 0:00:34]} 25... Kh8 {[%clk 0:00:35.7]} 26. Qxe8+
{[%clk 0:00:33.8]} 26... Rxe8 {[%clk 0:00:35.7]} 27. Rxe8+ {[%clk 0:00:33.3]}
27... Qf8 {[%clk 0:00:36.3]} 28. Rxf8# {[%clk 0:00:34.2]} 1-0

[Event "Early-Titled-Tuesday-Blitz-October-24-2023"]
[Site "Chess.com"]
[Date "2023.10.24"]
[Round "9"]
[White "KorolDimitriy75"]
[Black "rdarruda"]
[Result "0-1"]
[WhiteElo "2352"]
[BlackElo "2535"]
[TimeControl "180+1"]
[EndTime "9:41:20 PDT"]
[Termination "rdarruda won on time"]

1. d4 {[%clk 0:03:00.9]} 1... Nf6 {[%clk 0:02:50.4]} 2. c4 {[%clk 0:03:01]} 2...
e5 {[%clk 0:02:50.1]} 3. dxe5 {[%clk 0:03:00.7]} 3... Ne4 {[%clk 0:02:50.2]} 4.
Nd2 {[%clk 0:02:57.3]} 4... Nc5 {[%clk 0:02:49.2]} 5. Ngf3 {[%clk 0:02:52.5]}
5... Nc6 {[%clk 0:02:48.5]} 6. e3 {[%clk 0:02:39.5]} 6... d6 {[%clk 0:02:48.3]}
7. exd6 {[%clk 0:02:34.1]} 7... Bxd6 {[%clk 0:02:49.2]} 8. Be2 {[%clk 0:02:10]}
8... Qf6 {[%clk 0:02:47]} 9. Nb3 {[%clk 0:01:53.2]} 9... Bf5 {[%clk 0:02:45]}
10. Nxc5 {[%clk 0:01:51.1]} 10... Bxc5 {[%clk 0:02:45.9]} 11. O-O {[%clk
0:01:42.8]} 11... O-O {[%clk 0:02:41.5]} 12. Qb3 {[%clk 0:01:17.5]} 12... b6
{[%clk 0:02:16.7]} 13. Bd2 {[%clk 0:01:16.5]} 13... a5 {[%clk 0:01:58]} 14. Bc3
{[%clk 0:01:07.5]} 14... Qe7 {[%clk 0:01:57.8]} 15. Qa4 {[%clk 0:00:51.8]} 15...
Qe6 {[%clk 0:01:43.3]} 16. Ng5 {[%clk 0:00:41.2]} 16... Qg6 {[%clk 0:01:37.2]}
17. Bf3 {[%clk 0:00:36.3]} 17... Qxg5 {[%clk 0:01:36]} 18. Qxc6 {[%clk
0:00:34.7]} 18... Bd6 {[%clk 0:01:31.9]} 19. Rfd1 {[%clk 0:00:18.5]} 19... Rad8
{[%clk 0:01:28.8]} 20. g3 {[%clk 0:00:17.5]} 20... h5 {[%clk 0:01:23.9]} 21. Rd5
{[%clk 0:00:08.7]} 21... Qg6 {[%clk 0:01:22.1]} 22. Rad1 {[%clk 0:00:07.3]}
22... h4 {[%clk 0:01:18]} 23. Bg2 {[%clk 0:00:06]} 23... h3 {[%clk 0:01:08.3]}
24. Bh1 {[%clk 0:00:05.1]} 24... Be4 {[%clk 0:00:58]} 0-1

[Event "Early-Titled-Tuesday-Blitz-October-24-2023"]
[Site "Chess.com"]
[Date "2023.10.24"]
[Round "9"]
[White "Sharan_Rao"]
[Black "Alenzer"]
[Result "1-0"]
[WhiteElo "2599"]
[BlackElo "2062"]
[TimeControl "180+1"]
[EndTime "9:41:20 PDT"]
[Termination "Sharan_Rao won on time"]

1. d4 {[%clk 0:02:55.9]} 1... d5 {[%clk 0:02:59.1]} 2. e3 {[%clk 0:02:56.2]}
2... c5 {[%clk 0:02:57.2]} 3. Nf3 {[%clk 0:02:56.5]} 3... Nf6 {[%clk 0:02:56.6]}
4. c3 {[%clk 0:02:56.7]} 4... e6 {[%clk 0:02:56.3]} 5. Nbd2 {[%clk 0:02:56.9]}
5... Bd6 {[%clk 0:02:54.5]} 6. Bd3 {[%clk 0:02:57.3]} 6... O-O {[%clk
0:02:47.1]} 7. O-O {[%clk 0:02:57.6]} 7... Nbd7 {[%clk 0:02:37.1]} 8. Qe2 {[%clk
0:02:57.6]} 8... c4 {[%clk 0:02:36.2]} 9. Bc2 {[%clk 0:02:57.6]} 9... b5 {[%clk
0:02:36.6]} 10. e4 {[%clk 0:02:58]} 10... dxe4 {[%clk 0:02:32.9]} 11. Nxe4
{[%clk 0:02:58.9]} 11... Ne8 {[%clk 0:02:03.1]} 12. Nxd6 {[%clk 0:02:51.7]}
12... Nxd6 {[%clk 0:02:03]} 13. Bf4 {[%clk 0:02:52.1]} 13... Nb6 {[%clk
0:02:00.6]} 14. Bxh7+ {[%clk 0:02:36.7]} 14... Kxh7 {[%clk 0:01:53]} 15. Ng5+
{[%clk 0:02:37.3]} 15... Kg6 {[%clk 0:01:49.5]} 16. Qg4 {[%clk 0:02:26.9]} 16...
f5 {[%clk 0:01:46.4]} 17. Qg3 {[%clk 0:02:26.5]} 17... Kf6 {[%clk 0:01:33.4]}
18. Bxd6 {[%clk 0:02:23.8]} 18... Rh8 {[%clk 0:01:26]} 19. Be5+ {[%clk
0:02:08.9]} 19... Ke7 {[%clk 0:01:24.7]} 20. Nf7 {[%clk 0:02:00.1]} 20... Kxf7
{[%clk 0:01:09.1]} 21. Qxg7+ {[%clk 0:01:59.8]} 21... Ke8 {[%clk 0:01:09.5]} 22.
Qxh8+ {[%clk 0:01:58.9]} 22... Kd7 {[%clk 0:01:10]} 23. Qg7+ {[%clk 0:01:59.2]}
23... Kc6 {[%clk 0:01:03.4]} 24. b3 {[%clk 0:01:50.5]} 24... Bd7 {[%clk
0:00:58.4]} 25. a4 {[%clk 0:01:47.4]} 25... bxa4 {[%clk 0:00:56.5]} 26. bxa4
{[%clk 0:01:46.5]} 26... Nd5 {[%clk 0:00:44.7]} 27. a5 {[%clk 0:01:41.5]} 27...
a6 {[%clk 0:00:29.6]} 28. Rfc1 {[%clk 0:01:34.3]} 28... Ra7 {[%clk 0:00:28.6]}
29. Rab1 {[%clk 0:01:30.8]} 29... Qxa5 {[%clk 0:00:26.1]} 30. Qf8 {[%clk
0:01:23.6]} 1-0

[Event "Early-Titled-Tuesday-Blitz-October-24-2023"]
[Site "Chess.com"]
[Date "2023.10.24"]
[Round "9"]
[White "Doomfist26"]
[Black "Nyzhnyk_Illia"]
[Result "0-1"]
[WhiteElo "2661"]
[BlackElo "2877"]
[TimeControl "180+1"]
[EndTime "9:41:23 PDT"]
[Termination "Nyzhnyk_Illia won by checkmate"]

1. e4 {[%clk 0:03:00.9]} 1... c5 {[%clk 0:02:59.2]} 2. Nf3 {[%clk 0:03:01]} 2...
d6 {[%clk 0:02:59]} 3. Bb5+ {[%clk 0:03:01.1]} 3... Nd7 {[%clk 0:02:59.4]} 4.
O-O {[%clk 0:03:00.3]} 4... a6 {[%clk 0:02:59]} 5. Bxd7+ {[%clk 0:02:59.3]} 5...
Bxd7 {[%clk 0:02:59.7]} 6. c3 {[%clk 0:03:00]} 6... Nf6 {[%clk 0:02:59.5]} 7.
Re1 {[%clk 0:03:00.4]} 7... Bg4 {[%clk 0:02:58.4]} 8. d4 {[%clk 0:03:00.4]} 8...
cxd4 {[%clk 0:02:58.7]} 9. cxd4 {[%clk 0:03:00.6]} 9... e6 {[%clk 0:02:59.3]}
10. Nc3 {[%clk 0:02:59.6]} 10... d5 {[%clk 0:02:59.7]} 11. e5 {[%clk 0:02:43.5]}
11... Nd7 {[%clk 0:02:59.9]} 12. h3 {[%clk 0:02:43.9]} 12... Bh5 {[%clk
0:03:00.1]} 13. Qb3 {[%clk 0:02:27.4]} 13... Qb6 {[%clk 0:02:59.8]} 14. Qxb6
{[%clk 0:02:09.9]} 14... Nxb6 {[%clk 0:03:00.7]} 15. Nd2 {[%clk 0:02:07.8]}
15... Rc8 {[%clk 0:02:59]} 16. a3 {[%clk 0:02:06.7]} 16... Bg6 {[%clk
0:02:58.1]} 17. Nb3 {[%clk 0:02:03.4]} 17... Nc4 {[%clk 0:02:57.6]} 18. f4
{[%clk 0:01:55]} 18... Nxa3 {[%clk 0:02:55.9]} 19. bxa3 {[%clk 0:01:52.8]} 19...
Rxc3 {[%clk 0:02:55.7]} 20. Na5 {[%clk 0:01:53.5]} 20... b6 {[%clk 0:02:48.6]}
21. Nb7 {[%clk 0:01:45.9]} 21... Rc2 {[%clk 0:02:48.5]} 22. Rf1 {[%clk
0:01:38.5]} 22... Kd7 {[%clk 0:02:45.5]} 23. Rf2 {[%clk 0:01:38.7]} 23... Rxf2
{[%clk 0:02:33.4]} 24. Kxf2 {[%clk 0:01:39.6]} 24... Kc7 {[%clk 0:02:33.8]} 25.
Nd6 {[%clk 0:01:40.1]} 25... Bxd6 {[%clk 0:02:34.5]} 26. exd6+ {[%clk 0:01:41]}
26... Kxd6 {[%clk 0:02:35.2]} 27. a4 {[%clk 0:01:41.9]} 27... Rc8 {[%clk
0:02:34.4]} 28. Ba3+ {[%clk 0:01:42.8]} 28... Kd7 {[%clk 0:02:34.1]} 29. Rc1
{[%clk 0:01:42.5]} 29... Rxc1 {[%clk 0:02:33.9]} 30. Bxc1 {[%clk 0:01:43.4]}
30... Bc2 {[%clk 0:02:34]} 31. a5 {[%clk 0:01:41.7]} 31... bxa5 {[%clk
0:02:34.8]} 32. Ke3 {[%clk 0:01:40.8]} 32... Kc6 {[%clk 0:02:32.8]} 33. Kd2
{[%clk 0:01:39.9]} 33... Be4 {[%clk 0:02:32.7]} 34. g3 {[%clk 0:01:39.7]} 34...
h5 {[%clk 0:02:31.1]} 35. Kc3 {[%clk 0:01:35.9]} 35... h4 {[%clk 0:02:29.1]} 36.
gxh4 {[%clk 0:01:35.8]} 36... g6 {[%clk 0:02:29.4]} 37. Ba3 {[%clk 0:01:30.5]}
37... Bg2 {[%clk 0:02:29.4]} 38. Bc5 {[%clk 0:01:26.5]} 38... Bxh3 {[%clk
0:02:29.8]} 39. Be7 {[%clk 0:01:24.5]} 39... Bf1 {[%clk 0:02:30.4]} 40. Ba3
{[%clk 0:01:24]} 40... Bc4 {[%clk 0:02:27.6]} 41. Be7 {[%clk 0:01:24.2]} 41...
Kd7 {[%clk 0:02:28]} 42. Ba3 {[%clk 0:01:21.9]} 42... a4 {[%clk 0:02:27.6]} 43.
Bf8 {[%clk 0:01:20.7]} 43... Bb5 {[%clk 0:02:26.6]} 44. Kb4 {[%clk 0:01:17]}
44... Ke8 {[%clk 0:02:25.6]} 45. Bc5 {[%clk 0:01:14.1]} 45... f6 {[%clk
0:02:26.1]} 46. Kc3 {[%clk 0:01:14.2]} 46... Kf7 {[%clk 0:02:26.7]} 47. Bb6
{[%clk 0:01:11.7]} 47... Bc4 {[%clk 0:02:21.5]} 48. Kb4 {[%clk 0:01:11.3]} 48...
Bb3 {[%clk 0:02:21.4]} 49. Bd8 {[%clk 0:01:10.6]} 49... a5+ {[%clk 0:02:19.5]}
50. Kc3 {[%clk 0:00:36.5]} 50... Bc4 {[%clk 0:02:18]} 51. Kb2 {[%clk 0:00:33.1]}
51... e5 {[%clk 0:02:17]} 52. fxe5 {[%clk 0:00:32.3]} 52... fxe5 {[%clk
0:02:17.9]} 53. dxe5 {[%clk 0:00:32.8]} 53... Ke6 {[%clk 0:02:18.8]} 54. Bc7
{[%clk 0:00:28.3]} 54... d4 {[%clk 0:02:18.2]} 55. Ka3 {[%clk 0:00:24]} 55...
Bb3 {[%clk 0:02:18.5]} 56. Kb2 {[%clk 0:00:22.7]} 56... Kd5 {[%clk 0:02:18.2]}
57. Ka3 {[%clk 0:00:22.2]} 57... d3 {[%clk 0:02:17.6]} 58. Bxa5 {[%clk
0:00:21.7]} 58... Kxe5 {[%clk 0:02:17.9]} 59. Kb2 {[%clk 0:00:21.5]} 59... Ke4
{[%clk 0:02:18.3]} 60. Kc1 {[%clk 0:00:22.1]} 60... Ke3 {[%clk 0:02:18.3]} 61.
Bd2+ {[%clk 0:00:20.1]} 61... Ke2 {[%clk 0:02:19]} 62. Bb4 {[%clk 0:00:16]}
62... a3 {[%clk 0:02:19.4]} 63. Kb1 {[%clk 0:00:16.5]} 63... d2 {[%clk
0:02:19.3]} 64. Bxd2 {[%clk 0:00:14.8]} 64... Kxd2 {[%clk 0:02:20.2]} 65. Ka1
{[%clk 0:00:15.3]} 65... Ke3 {[%clk 0:02:20.3]} 66. Kb1 {[%clk 0:00:16.2]} 66...
Kf4 {[%clk 0:02:19.9]} 67. Ka1 {[%clk 0:00:17.1]} 67... Kg4 {[%clk 0:02:20.3]}
68. Kb1 {[%clk 0:00:18]} 68... Kxh4 {[%clk 0:02:20.8]} 69. Ka1 {[%clk
0:00:18.9]} 69... g5 {[%clk 0:02:21.2]} 70. Kb1 {[%clk 0:00:19.8]} 70... g4
{[%clk 0:02:21.6]} 71. Ka1 {[%clk 0:00:20.7]} 71... g3 {[%clk 0:02:21.7]} 72.
Kb1 {[%clk 0:00:21.6]} 72... g2 {[%clk 0:02:22.4]} 73. Ka1 {[%clk 0:00:22.5]}
73... g1=Q# {[%clk 0:02:23.1]} 0-1

[Event "Early-Titled-Tuesday-Blitz-October-24-2023"]
[Site "Chess.com"]
[Date "2023.10.24"]
[Round "9"]
[White "howitzer14"]
[Black "DarZay"]
[Result "1-0"]
[WhiteElo "2927"]
[BlackElo "2264"]
[TimeControl "180+1"]
[EndTime "9:41:31 PDT"]
[Termination "howitzer14 won on time"]

1. e4 {[%clk 0:02:56.7]} 1... c5 {[%clk 0:02:42.5]} 2. Bc4 {[%clk 0:02:40.8]}
2... Nc6 {[%clk 0:02:37.9]} 3. Nf3 {[%clk 0:02:27.9]} 3... e5 {[%clk 0:02:35.3]}
4. d3 {[%clk 0:02:23.8]} 4... d6 {[%clk 0:02:31.3]} 5. Ng5 {[%clk 0:02:20.5]}
5... Nh6 {[%clk 0:02:28.7]} 6. Nc3 {[%clk 0:02:12.5]} 6... Be7 {[%clk
0:02:22.1]} 7. h4 {[%clk 0:02:08.1]} 7... a6 {[%clk 0:02:10.2]} 8. a4 {[%clk
0:02:06.4]} 8... Nd4 {[%clk 0:01:58.4]} 9. Be3 {[%clk 0:01:54.4]} 9... Qb6
{[%clk 0:01:30]} 10. Nd5 {[%clk 0:01:43.4]} 10... Qxb2 {[%clk 0:01:25.7]} 11.
Bxd4 {[%clk 0:01:38.9]} 11... cxd4 {[%clk 0:01:18.1]} 12. Nc7+ {[%clk
0:01:25.2]} 12... Kf8 {[%clk 0:01:12.4]} 13. Nxa8 {[%clk 0:01:24.5]} 13... Qc3+
{[%clk 0:01:08.6]} 14. Kf1 {[%clk 0:01:24.2]} 14... Bd8 {[%clk 0:01:04.8]} 15.
Rb1 {[%clk 0:01:19.1]} 15... Qa5 {[%clk 0:00:47.2]} 16. Bd5 {[%clk 0:01:13.4]}
16... f6 {[%clk 0:00:29.6]} 17. Ne6+ {[%clk 0:01:05.6]} 17... Bxe6 {[%clk
0:00:28]} 18. Bxe6 {[%clk 0:01:06.5]} 18... b6 {[%clk 0:00:25.1]} 19. Qh5 {[%clk
0:01:01]} 19... Ke7 {[%clk 0:00:22.9]} 20. Bd5 {[%clk 0:00:57.9]} 20... Qc5
{[%clk 0:00:16.7]} 21. Rh3 {[%clk 0:00:54.4]} 21... Qxc2 {[%clk 0:00:14.2]} 22.
Re1 {[%clk 0:00:54.7]} 22... b5 {[%clk 0:00:10.9]} 23. Rg3 {[%clk 0:00:53.4]}
23... Ba5 {[%clk 0:00:03.2]} 24. Rxg7+ {[%clk 0:00:51.9]} 24... Kd8 {[%clk
0:00:02.2]} 25. Qxh6 {[%clk 0:00:49.8]} 1-0

[Event "Early-Titled-Tuesday-Blitz-October-24-2023"]
[Site "Chess.com"]
[Date "2023.10.24"]
[Round "9"]
[White "Juicy_Fork"]
[Black "falzehope0"]
[Result "1-0"]
[WhiteElo "2446"]
[BlackElo "2325"]
[TimeControl "180+1"]
[EndTime "9:41:48 PDT"]
[Termination "Juicy_Fork won by resignation"]

1. e4 {[%clk 0:02:55.2]} 1... d5 {[%clk 0:02:59.5]} 2. exd5 {[%clk 0:02:54.7]}
2... Nf6 {[%clk 0:02:59.8]} 3. Bb5+ {[%clk 0:02:47.9]} 3... Nbd7 {[%clk
0:02:59.3]} 4. Nc3 {[%clk 0:02:41.3]} 4... a6 {[%clk 0:02:58.6]} 5. Be2 {[%clk
0:02:28.9]} 5... b5 {[%clk 0:02:56.5]} 6. a3 {[%clk 0:02:22.4]} 6... Bb7 {[%clk
0:02:56]} 7. Nf3 {[%clk 0:02:21.6]} 7... Nb6 {[%clk 0:02:55.3]} 8. O-O {[%clk
0:02:18.8]} 8... g6 {[%clk 0:02:54.7]} 9. d4 {[%clk 0:02:13.3]} 9... Bg7 {[%clk
0:02:53.9]} 10. Re1 {[%clk 0:02:09.2]} 10... O-O {[%clk 0:02:53.4]} 11. Bf4
{[%clk 0:02:03.6]} 11... Nfxd5 {[%clk 0:02:40.2]} 12. Nxd5 {[%clk 0:02:02.6]}
12... Nxd5 {[%clk 0:02:37.1]} 13. Bg3 {[%clk 0:02:02.1]} 13... Rc8 {[%clk
0:02:33.5]} 14. c4 {[%clk 0:01:57.6]} 14... bxc4 {[%clk 0:02:23.9]} 15. Bxc4
{[%clk 0:01:58.5]} 15... e6 {[%clk 0:02:04.9]} 16. b4 {[%clk 0:01:51.6]} 16...
Nc3 {[%clk 0:01:56.1]} 17. Qd3 {[%clk 0:01:44.1]} 17... Bxf3 {[%clk 0:01:50.8]}
18. Qxc3 {[%clk 0:01:38.5]} 18... Bb7 {[%clk 0:01:13.2]} 19. Rad1 {[%clk
0:01:36.2]} 19... Qg5 {[%clk 0:01:07.2]} 20. h4 {[%clk 0:01:31.1]} 20... Qf5
{[%clk 0:00:59.7]} 21. Rd3 {[%clk 0:00:48]} 21... Rfd8 {[%clk 0:00:56.7]} 22.
Be5 {[%clk 0:00:38.9]} 22... Bf8 {[%clk 0:00:48.1]} 23. Rg3 {[%clk 0:00:31.4]}
23... Rd7 {[%clk 0:00:36.9]} 24. Rg5 {[%clk 0:00:28.6]} 24... Bd5 {[%clk
0:00:15.7]} 25. Rxf5 {[%clk 0:00:27.3]} 25... exf5 {[%clk 0:00:16.6]} 26. Bxd5
{[%clk 0:00:26.8]} 26... Rxd5 {[%clk 0:00:17.5]} 27. Qc6 {[%clk 0:00:27.2]}
27... Rdd8 {[%clk 0:00:16.4]} 28. Qf6 {[%clk 0:00:25.3]} 1-0

[Event "Early-Titled-Tuesday-Blitz-October-24-2023"]
[Site "Chess.com"]
[Date "2023.10.24"]
[Round "9"]
[White "BardArtem"]
[Black "Khromkin"]
[Result "1-0"]
[WhiteElo "2685"]
[BlackElo "2511"]
[TimeControl "180+1"]
[EndTime "9:41:50 PDT"]
[Termination "BardArtem won by resignation"]

1. e4 {[%clk 0:02:58.9]} 1... c5 {[%clk 0:02:59.9]} 2. c3 {[%clk 0:02:56.6]}
2... d5 {[%clk 0:02:58.7]} 3. exd5 {[%clk 0:02:57.5]} 3... Qxd5 {[%clk
0:02:59.2]} 4. d4 {[%clk 0:02:56.8]} 4... Nc6 {[%clk 0:02:59.7]} 5. Nf3 {[%clk
0:02:56.8]} 5... Bg4 {[%clk 0:02:59.9]} 6. dxc5 {[%clk 0:02:49.8]} 6... Qxd1+
{[%clk 0:02:59.4]} 7. Kxd1 {[%clk 0:02:50.7]} 7... Nf6 {[%clk 0:02:57]} 8. Be3
{[%clk 0:02:47.8]} 8... e5 {[%clk 0:02:37.4]} 9. b4 {[%clk 0:02:40.2]} 9...
O-O-O+ {[%clk 0:02:30.5]} 10. Kc2 {[%clk 0:02:34.4]} 10... Nd5 {[%clk
0:02:23.9]} 11. Nbd2 {[%clk 0:02:23.7]} 11... h6 {[%clk 0:02:11.2]} 12. h3
{[%clk 0:02:13.5]} 12... Bf5+ {[%clk 0:02:05.6]} 13. Kb2 {[%clk 0:02:12.4]}
13... Nxe3 {[%clk 0:01:50.9]} 14. fxe3 {[%clk 0:02:12.1]} 14... g6 {[%clk
0:01:34.5]} 15. e4 {[%clk 0:02:07.1]} 15... Be6 {[%clk 0:01:29.1]} 16. Bc4
{[%clk 0:02:05.7]} 16... Re8 {[%clk 0:01:09]} 17. Bxe6+ {[%clk 0:02:04.4]} 17...
Rxe6 {[%clk 0:01:09.9]} 18. Rhf1 {[%clk 0:01:59.6]} 18... f5 {[%clk 0:01:06.2]}
19. exf5 {[%clk 0:01:51.7]} 19... gxf5 {[%clk 0:01:04]} 20. Nh4 {[%clk
0:01:52.2]} 20... f4 {[%clk 0:00:56]} 21. Rae1 {[%clk 0:01:50]} 21... Be7 {[%clk
0:00:48.2]} 22. Nf5 {[%clk 0:01:41.3]} 22... Rg8 {[%clk 0:00:43.4]} 23. Re2
{[%clk 0:01:19.7]} 23... Rg5 {[%clk 0:00:41.2]} 24. Nxe7+ {[%clk 0:01:12.9]}
24... Rxe7 {[%clk 0:00:41.1]} 25. Ne4 {[%clk 0:01:09.7]} 25... Rgg7 {[%clk
0:00:40.1]} 26. Nd6+ {[%clk 0:01:10]} 26... Kd7 {[%clk 0:00:35]} 27. Nf5 {[%clk
0:01:10.9]} 27... Ke6 {[%clk 0:00:34.7]} 28. Nxg7+ {[%clk 0:01:07.3]} 28... Rxg7
{[%clk 0:00:34.7]} 29. Rxf4 {[%clk 0:01:07.4]} 29... Rxg2 {[%clk 0:00:32.1]} 30.
Rf6+ {[%clk 0:01:05.6]} 30... Kxf6 {[%clk 0:00:29.8]} 31. Rxg2 {[%clk
0:01:06.5]} 31... e4 {[%clk 0:00:30.2]} 32. Kc2 {[%clk 0:01:04.8]} 32... Ke5
{[%clk 0:00:27.4]} 33. Kd2 {[%clk 0:01:04.3]} 33... Ne7 {[%clk 0:00:25]} 34. Rg7
{[%clk 0:01:01.4]} 34... Nd5 {[%clk 0:00:23.5]} 35. Rxb7 {[%clk 0:01:01.3]}
35... e3+ {[%clk 0:00:22.6]} 36. Kd3 {[%clk 0:01:01.2]} 36... e2 {[%clk
0:00:14.8]} 37. Kxe2 {[%clk 0:01:00.4]} 37... Nxc3+ {[%clk 0:00:15.7]} 38. Kd3
{[%clk 0:01:00.4]} 38... Nxa2 {[%clk 0:00:15.9]} 39. Kc4 {[%clk 0:00:59.3]}
39... Nc1 {[%clk 0:00:14.2]} 40. Re7+ {[%clk 0:00:56.7]} 1-0

[Event "Early-Titled-Tuesday-Blitz-October-24-2023"]
[Site "Chess.com"]
[Date "2023.10.24"]
[Round "9"]
[White "Karttunen"]
[Black "RCone"]
[Result "1-0"]
[WhiteElo "2596"]
[BlackElo "2427"]
[TimeControl "180+1"]
[EndTime "9:41:56 PDT"]
[Termination "Karttunen won by checkmate"]

1. e4 {[%clk 0:03:00.9]} 1... d6 {[%clk 0:02:55.2]} 2. d4 {[%clk 0:02:59.8]}
2... Nf6 {[%clk 0:02:54.6]} 3. Nc3 {[%clk 0:02:59.5]} 3... g6 {[%clk 0:02:53.8]}
4. f4 {[%clk 0:02:59.4]} 4... Bg7 {[%clk 0:02:53.2]} 5. Nf3 {[%clk 0:02:59.1]}
5... O-O {[%clk 0:02:53]} 6. Bd3 {[%clk 0:02:56.8]} 6... Na6 {[%clk 0:02:53.2]}
7. e5 {[%clk 0:02:46.5]} 7... Nd7 {[%clk 0:02:50]} 8. a3 {[%clk 0:02:32.2]} 8...
c5 {[%clk 0:02:49.1]} 9. Be3 {[%clk 0:02:28.1]} 9... cxd4 {[%clk 0:02:44.1]} 10.
Bxd4 {[%clk 0:02:28.1]} 10... dxe5 {[%clk 0:02:36.9]} 11. fxe5 {[%clk
0:02:26.8]} 11... Nac5 {[%clk 0:02:35.9]} 12. Bc4 {[%clk 0:02:15.9]} 12... Ne6
{[%clk 0:02:14.5]} 13. Bxe6 {[%clk 0:02:09]} 13... fxe6 {[%clk 0:02:15.4]} 14.
Qd2 {[%clk 0:01:49.7]} 14... Qc7 {[%clk 0:02:13.6]} 15. Qe3 {[%clk 0:01:42.2]}
15... Nb6 {[%clk 0:02:10.7]} 16. Bxb6 {[%clk 0:01:34.4]} 16... axb6 {[%clk
0:02:10.2]} 17. O-O {[%clk 0:01:20.4]} 17... Ra5 {[%clk 0:02:00.8]} 18. Rad1
{[%clk 0:01:13.8]} 18... Bd7 {[%clk 0:01:51.6]} 19. Ne4 {[%clk 0:00:45.1]} 19...
Bb5 {[%clk 0:01:39.8]} 20. Rf2 {[%clk 0:00:36.6]} 20... h6 {[%clk 0:01:31.7]}
21. h4 {[%clk 0:00:27.6]} 21... Bc6 {[%clk 0:01:27.1]} 22. h5 {[%clk 0:00:25.9]}
22... Bxe4 {[%clk 0:00:37.7]} 23. Qxe4 {[%clk 0:00:25.3]} 23... g5 {[%clk
0:00:37.9]} 24. Qg6 {[%clk 0:00:20.7]} 24... Qc6 {[%clk 0:00:20.6]} 25. Nxg5
{[%clk 0:00:19.5]} 25... Rxf2 {[%clk 0:00:15.4]} 26. Rd8+ {[%clk 0:00:15.5]}
26... Rf8 {[%clk 0:00:11.8]} 27. Qh7# {[%clk 0:00:15.4]} 1-0

[Event "Early-Titled-Tuesday-Blitz-October-24-2023"]
[Site "Chess.com"]
[Date "2023.10.24"]
[Round "9"]
[White "ATM622"]
[Black "Ginzburg_Yakov"]
[Result "0-1"]
[WhiteElo "2417"]
[BlackElo "2589"]
[TimeControl "180+1"]
[EndTime "9:41:57 PDT"]
[Termination "Ginzburg_Yakov won by checkmate"]

1. d4 {[%clk 0:03:00.9]} 1... d5 {[%clk 0:02:59.1]} 2. c4 {[%clk 0:03:00.5]}
2... c6 {[%clk 0:02:59.2]} 3. Nf3 {[%clk 0:03:00.2]} 3... Nf6 {[%clk 0:02:59.2]}
4. Nbd2 {[%clk 0:02:59.5]} 4... b5 {[%clk 0:02:45.1]} 5. b3 {[%clk 0:02:57.4]}
5... Bf5 {[%clk 0:02:43.7]} 6. e3 {[%clk 0:02:54.3]} 6... a6 {[%clk 0:02:43]} 7.
a4 {[%clk 0:02:53.5]} 7... bxc4 {[%clk 0:02:29.7]} 8. bxc4 {[%clk 0:02:52.9]}
8... e6 {[%clk 0:02:29.9]} 9. c5 {[%clk 0:02:52.4]} 9... Nbd7 {[%clk 0:02:29]}
10. a5 {[%clk 0:02:50.7]} 10... e5 {[%clk 0:02:21.3]} 11. Qa4 {[%clk 0:02:49.4]}
11... Qc7 {[%clk 0:02:18.7]} 12. Nh4 {[%clk 0:02:40.8]} 12... Be6 {[%clk
0:02:15.9]} 13. Rb1 {[%clk 0:02:35.6]} 13... Be7 {[%clk 0:02:03.9]} 14. Bd3
{[%clk 0:02:30.1]} 14... Ne4 {[%clk 0:01:58.5]} 15. Bxe4 {[%clk 0:02:09.5]}
15... dxe4 {[%clk 0:01:48.3]} 16. g3 {[%clk 0:02:09.1]} 16... Bxh4 {[%clk
0:01:43.7]} 17. gxh4 {[%clk 0:02:08.9]} 17... O-O {[%clk 0:01:24.3]} 18. h5
{[%clk 0:01:50.2]} 18... f5 {[%clk 0:01:01.3]} 19. Rg1 {[%clk 0:01:41.9]} 19...
exd4 {[%clk 0:00:57.6]} 20. exd4 {[%clk 0:01:39.7]} 20... Qxh2 {[%clk
0:00:54.8]} 21. Rg5 {[%clk 0:01:22.2]} 21... e3 {[%clk 0:00:52.9]} 22. Qxc6
{[%clk 0:00:21.8]} 22... Qxf2+ {[%clk 0:00:49.8]} 23. Kd1 {[%clk 0:00:21.9]}
23... e2+ {[%clk 0:00:49.8]} 24. Kc2 {[%clk 0:00:22.1]} 24... e1=Q {[%clk
0:00:48.7]} 25. h6 {[%clk 0:00:20.7]} 25... Qe4+ {[%clk 0:00:31.2]} 26. Qxe4
{[%clk 0:00:17.5]} 26... fxe4 {[%clk 0:00:31.4]} 27. Rxg7+ {[%clk 0:00:18.4]}
27... Kh8 {[%clk 0:00:31.6]} 28. Kc3 {[%clk 0:00:18.7]} 28... Qe3+ {[%clk
0:00:28.3]} 29. Kc2 {[%clk 0:00:17.6]} 29... Qd3+ {[%clk 0:00:27.1]} 30. Kd1
{[%clk 0:00:17.9]} 30... Rf1# {[%clk 0:00:26.3]} 0-1